{"text_format":"1","workbook":"xlsx","n_sheets":4,"sheets":["CW3B Application","Disbursement's (optional)","FAQ's","Sheet1"],"not_rendered":{"charts":0,"images":4,"macros":1,"external_links":0,"defined_names":9,"comments":0,"pivot_tables":0},"unopened":[],"bounds":{"document_bytes":16777216,"sheet_cells":100000,"rows_first":2000,"rows_last":500,"rows_between":2000,"halvings":0,"cell_chars":16384,"cell_head_chars":4096},"cells_cut":0,"cells_raw":0,"read":"whole","date_system":"1900"}

{"sheet":"CW3B Application","index":0,"n_rows":718,"n_cols":18,"rows_kept":718,"cut":false,"hidden":false,"merged":[[76,1,76,10],[17,0,17,1],[22,3,22,10],[23,3,23,10],[55,2,55,3],[55,6,55,7],[55,8,55,10],[25,0,25,1],[18,3,18,10],[19,3,19,10],[20,3,20,10],[21,3,21,10],[41,1,41,4],[42,1,42,4],[25,3,25,10],[18,0,18,1],[19,0,19,1],[20,0,20,1],[21,0,21,1],[40,5,40,6],[30,5,30,10],[31,5,31,10],[119,1,119,9],[83,1,83,10],[53,1,53,10],[44,5,44,6],[43,5,43,6],[44,1,44,4],[81,1,81,10],[79,6,79,10],[77,0,77,1],[61,1,61,10],[71,0,71,1],[63,2,63,3],[63,6,63,7],[63,8,63,10],[78,8,78,10],[73,6,73,10],[71,2,71,3],[71,6,71,7],[114,3,114,6],[116,3,116,6],[115,3,115,6],[65,6,65,10],[77,2,77,3],[77,8,77,10],[78,0,78,1],[78,2,78,3],[28,0,28,4],[29,0,29,4],[30,0,30,4],[31,0,31,4],[34,5,34,10],[35,5,35,10],[40,1,40,4],[41,5,41,6],[71,8,71,9],[64,2,64,3],[64,6,64,7],[60,1,60,10],[62,1,62,10],[58,6,58,10],[64,8,64,10],[72,0,72,1],[72,2,72,3],[72,6,72,7],[72,8,72,9],[78,6,78,7],[77,6,77,7],[70,1,70,10],[98,1,98,4],[98,5,98,10],[85,1,85,4],[86,1,86,4],[87,1,87,4],[88,1,88,4],[95,1,95,10],[96,1,96,4],[96,5,96,10],[97,1,97,4],[97,5,97,10],[87,5,87,7],[88,5,88,7],[85,5,85,7],[86,5,86,7],[114,8,114,10],[101,8,101,9],[102,8,102,9],[103,8,103,9],[108,4,108,5],[107,4,107,5],[116,8,116,10],[109,4,109,5],[112,1,112,10],[57,2,57,3],[57,6,57,7],[57,8,57,10],[56,2,56,3],[56,6,56,7],[56,8,56,10],[1,11,1,19],[10,3,10,10],[11,3,11,10],[5,0,5,10],[2,3,2,10],[9,0,9,1],[10,0,10,1],[11,0,11,1],[3,12,3,16],[3,17,3,18],[40,13,40,14],[43,1,43,4],[22,0,22,1],[23,0,23,1],[50,4,50,10],[50,0,50,3],[54,1,54,10],[49,0,49,10],[48,0,48,10],[42,5,42,6]]}
[null,null,null,null,null,null,null,null,null,null,"CW3B"]
[null,null,null,null,null,null,null,null,null,null,null,"LAA TOP TIPS COLUMN"]
[null,null,null,"Application for extension of Upper Costs Limit "]
[null,null,null,null,null,null,null,null,null,null,null,null,"Disbursements used?(Internal use only)",null,null,null,null,{"$f":"IF(AND('Disbursement''s (optional)'!A6=\"\",'Disbursement''s (optional)'!A7=\"\",'Disbursement''s (optional)'!A8=\"\",'Disbursement''s (optional)'!A9=\"\",'Disbursement''s (optional)'!A10=\"\",'Disbursement''s (optional)'!A11=\"\")= TRUE,\"No\",\"Yes\")","v":"No"}]
[]
["This form must be used for making extension requests on hourly rates cases opened under paragraph 8.77 (b,e,f,g and i-n) of the 2013 Standard Civil Contract, paragraph 8.83 (b-g and j-m) of the 2010 Standard Civil Contract. It should also be used for hourly rates cases opened post 1st October 2007 under the Unified Contract (excluding those under paragraph 11.2 (a))."]
[]
[]
[]
["Provider Details"]
["Name of Provider"]
["Account Number"]
[]
[]
[]
[]
[]
["Client Details"]
["Clients Forename"]
["Client's Surname"]
["Home Office UCN"]
["Client's D.O.B"]
["LH Start Date:"]
["CLR Start Date"]
[]
["Client's Nationality"]
[]
["Please confirm the nature of the extension request and the current stage of case:"]
["Has the client been detained during this period? "]
["Matter Type "]
["Matter Description "]
["If Matter Description above  is 'other' please specify"]
[]
[]
[null,null,null,null,"Legal Help"]
[null,null,null,null,"CLR"]
[]
[]
["Please note legal help & CLR profit costs limits and the disbursement limits are exclusive of VAT."]
[]
[null,"Application",null,null,null,"Amount incurred to date",null,"New Limit Requested","Current Limit","PA reference from previous grant (if applicable)","Overall Increase requested",null,null,null,null,"i"]
[null,"Legal Help Profit Costs",null,null,null,null,null,null,null,null,{"$f":"H42-I42","v":0}]
[null,"Legal Help Disbursements",null,null,null,null,null,null,null,null,{"$f":"H43-I43","v":0}]
[null,"CLR Financial",null,null,null,null,null,null,null,null,0]
[null,"CLR Bail Only",null,null,null,null,null,null,null,null,0]
[null,null,null,null,"TOTAL",{"$f":"SUM(F42:G45)","v":0},null,{"$f":"SUM(H42:H45)","v":0},{"$f":"SUM(I42:I45)","v":0},null,{"$f":"SUM(K42:K45)","v":0}]
[]
[1," Summary of Case:"]
["Please provide a brief description of the case, clearly detailing the key factual and legal issues material to the client's application/appeal. Please include an update of the case since the previous extension application if applicable."]
[]
["Prospects of Success:"]
[]
[2," Work carried out to date:"]
[]
[]
["Date","Category","Sub Category",null,"Rate","Hours / number of items","Total",null,"Comments",null,null,null,2]
[null,null,null,null,null,null,{"$f":"E57*F57","v":0}]
[null,null,null,null,null,null,{"$f":"E58*F58","v":0}]
[null,null,null,null,null,"Total:",{"$f":"GetTotals(M56,M59)","v":0},null,null,null,null,null,"2E"]
[]
[3," Disbursements incurred to date:"]
[]
[]
["Date","Category","Sub Category",null,"Rate","Hours / number of items","Total",null,"Comments",null,null,null,3]
[null,null,null,null,null,null,{"$f":"E65*F65","v":0}]
[null,null,null,null,null,"Total:",{"$f":"GetTotals(M64,M66)","v":0},null,null,null,null,null,"3E"]
[]
[]
[]
[4,"Details of further work required"]
[]
["Category",null,"Sub Category",null,"Rate","Hours / number of items","Total",null,"Comments",null,"Item number",null,4]
[null,null,null,null,null,null,{"$f":"E73*F73","v":0},null,null,null,1]
[null,null,null,null,null,"Total:",{"$f":"GetTotals(M72,M74)","v":0},null,null,null,null,null,"4E"]
[]
[5," Requested disbursements:"]
[null,"Give details of your work for which further legal aid is required.\nPlease note legal help & CLR profit costs limits and the disbursement limits are exclusive of VAT"]
["Category",null,"Sub Category",null,"Rate","Hours / number of items","Total",null,"Comments",null,null,null,5]
[null,null,null,null,null,null,{"$f":"E79*F79","v":0}]
[null,null,null,null,null,"Total:",{"$f":"GetTotals(M78,M80)","v":0},null,null,null,null,null,"5E"]
[]
[null,"Please complete the following sections where applicable:"]
[]
[null,"Experts Reports                                                                                        (all costs should be Exclusive of VAT)"]
[]
[null,"Type of Report",null,null,null,"Name of Expert",null,null,"Hourly rate to be charged","Number of Hours","Total Requested"]
[null,null,null,null,null,null,null,null,null,null,{"$f":"I87*J87","v":0}]
[null,null,null,null,null,null,null,null,null,null,{"$f":"I88*J88","v":0}]
[null,null,null,null,null,null,null,null,null,null,0]
[]
[]
[]
[]
[]
[]
[null,"Interpreters and Translations                                                                  (all costs should be Exclusive of VAT)"]
[null,"Language"]
[null,"Region"]
[null,"Number of Interpreter attendances"]
[]
[null,null,null,null,null,null,null,"Hrs Requested"]
[null,"Hourly rate for attendance",null,null,null,null,null,null,"Total for attendance ",null,{"$f":"F102*H102","v":0}]
[null,"Hourly rate for travel",null,null,null,null,null,null,"Total for travel time ",null,{"$f":"F103*H103","v":0}]
[null,"Hourly rate for waiting",null,null,null,null,null,null,"Total for waiting ",null,{"$f":"F104*H104","v":0}]
[null,null,null,null,null,null,null,null,null,"Travel Costs"]
[null,null,null,null,null,null,null,null,null,"Total Requested",{"$f":"SUM(K102:K105)","v":0}]
[]
[null,"Translation",null,null,"Charging Rates",null,null,null,"Items"]
[null,"Rate per 1000 words",null,null,null,null,null,"Number of words",null,"Cost (words)",{"$f":"(I109/1000)*E109","v":0}]
[null,"Rate per A4 page",null,null,null,null,null,"No A4 Pages",null,"Cost (pages)",{"$f":"E110*I110","v":0}]
[]
[null,"Declaration"]
[null,"I confirm that the details on this form are true to the best of my information and belief and that the work on this matter has been carried out in accordance with the contract specification and guidance.\n"]
[]
[null,"Signed",null,null,null,null,null,"PRINT NAME"]
[null,null,null,"Accredited Advisor"]
[null,null,null,"A typed signature is sufficient",null,null,null,"DATE SIGNED"]
[]
[]
[null,"Summary Box -  Explain in more detail the reasons for Expert reports and interpreters"]
[]
[]
[]
[]
[]
[]
[]
[]
[]
[]
[]
[]
[]
[]
[]
[]
[]
[]
[]
[]
[]
[]
[]
[]
[]
[]
[]
[]
[]
[]
[]
[]
[]
[]
[]
[]
[]
[]
[]
[]
[]
[]
[]
[]
[]
[]
[]
[]
[]
[]
[]
[]
[]
[]
[]
[]
[]
[]
[]
[]
[]
[]
[]
[]
[]
[]
[]
[]
[]
[]
[]
[]
[]
[]
[]
[]
[]
[]
[]
[]
[]
[]
[]
[]
[]
[]
[]
[]
[]
[]
[]
[]
[]
[]
[]
[]
[]
[]
[]
[]
[]
[]
[]
[]
[]
[]
[]
[]
[]
[]
[]
[]
[]
[]
[]
[]
[]
[]
[]
[]
[]
[]
[]
[]
[]
[]
[]
[]
[]
[]
[]
[]
[]
[]
[]
[]
[]
[]
[]
[]
[]
[]
[]
[]
[]
[]
[]
[]
[]
[]
[]
[]
[]
[]
[]
[]
[]
[]
[]
[]
[]
[]
[]
[]
[]
[]
[]
[]
[]
[]
[]
[]
[]
[]
[]
[]
[]
[]
[]
[]
[]
[]
[]
[]
[]
[]
[]
[]
[]
[]
[]
[]
[]
[]
[]
[]
[]
[]
[]
[]
[]
[]
[]
[]
[]
[]
[]
[]
[]
[]
[]
[]
[]
[]
[]
[]
[]
[]
[]
[]
[]
[]
[]
[]
[]
[]
[]
[]
[]
[]
[]
[]
[]
[]
[]
[]
[]
[]
[]
[]
[]
[]
[]
[]
[]
[]
[]
[]
[]
[]
[]
[]
[]
[]
[]
[]
[]
[]
[]
[]
[]
[]
[]
[]
[]
[]
[]
[]
[]
[]
[]
[]
[]
[]
[]
[]
[]
[]
[]
[]
[]
[]
[]
[]
[]
[]
[]
[]
[]
[]
[]
[]
[]
[]
[]
[]
[]
[]
[]
[]
[]
[]
[]
[]
[]
[]
[]
[]
[]
[]
[]
[]
[]
[]
[]
[]
[]
[]
[]
[]
[]
[]
[]
[]
[]
[]
[]
[]
[]
[]
[]
[]
[]
[]
[]
[]
[]
[]
[]
[]
[]
[]
[]
[]
[]
[]
[]
[]
[]
[]
[]
[]
[]
[]
[]
[]
[]
[]
[]
[]
[]
[]
[]
[]
[]
[]
[]
[]
[]
[]
[]
[]
[]
[]
[]
[]
[]
[]
[]
[]
[]
[]
[]
[]
[]
[]
[]
[]
[]
[]
[]
[]
[]
[]
[]
[]
[]
[]
[]
[]
[]
[]
[]
[]
[null,"Nationality",null,null,"Matter Description",null,null,null,"Languages"]
[null,"Afghan",null,null,"Fresh Application (if original asylum application was made prior to October 2007) ",null,null,null,"Akan"]
[null,"Albanian",null,null,"Legal advice solely in relation to Form Filling",null,null,null,"Amharic"]
[null,"Algerian",null,null,"Bail Application / Renewals",null,null,null,"Arabic"]
[null,"American",null,null,"Fast Track / on site surgery",null,null,null,"Assamese"]
[null,"Andorran",null,null,"Unaccompanied Asylum Seeking Child (UASC)",null,null,null,"Awadhi"]
[null,"Angolan",null,null,"Cases remitted from the Upper Tribunal",null,null,null,"Azerbaijani"]
[null,"Antiguans",null,null,"Other (please specify)",null,null,null,"Balochi"]
[null,"Argentinean",null,null,null,null,null,null,"Belarusian"]
[null,"Armenian",null,null,"Legal Help",null,null,null,"Bengali"]
[null,"Australian",null,null,"Prior to submission of Fresh Claim",null,null,null,"Bhojpuri"]
[null,"Austrian",null,null,"Post submission of Fresh claim",null,null,null,"Burmese"]
[null,"Azerbaijani",null,null,"Prior to substantive Interview",null,null,null,"Cantonese"]
[null,"Bahamian",null,null,"Post substantive Interview",null,null,null,"Cebuano"]
[null,"Bahraini",null,null,"Post Home Office decision",null,null,null,"Chewa"]
[null,"Bangladeshi",null,null,"Other (please specify in summary section)",null,null,null,"Chhattisgarhi"]
[null,"Barbadian",null,null,null,null,null,null,"Chittagonian"]
[null,"Barbudans",null,null,"CLR",null,null,null,"Czech"]
[null,"Batswana",null,null,"Prior to substantive hearing",null,null,null,"Deccan"]
[null,"Belarusian",null,null,"Post substantive hearing",null,null,null,"Dhundhari"]
[null,"Belgian",null,null,null,null,null,null,"Dutch"]
[null,"Belizean",null,null,null,null,null,null,"English"]
[null,"Beninese",null,null,null,null,null,null,"French"]
[null,"Bhutanese",null,null,null,null,null,null,"Fula"]
[null,"Bolivian",null,null,null,null,null,null,"Gan"]
[null,"Bosnian",null,null,null,null,null,null,"German"]
[null,"Brazilian",null,null,null,null,null,null,"Greek"]
[null,"British",null,null,null,null,null,null,"Gujarati"]
[null,"Bruneian",null,null,null,null,null,null,"Haitian Creole"]
[null,"Bulgarian",null,null,null,null,null,null,"Hakka"]
[null,"Burkinabe",null,null,null,null,null,null,"Haryanvi"]
[null,"Burmese",null,null,null,null,null,null,"Hausa"]
[null,"Burundian",null,null,null,null,null,null,"Hiligaynon"]
[null,"Cambodian",null,null,null,null,null,null,"Hindi"]
[null,"Cameroonian",null,null,null,null,null,null,"Hmong"]
[null,"Canadian",null,null,null,null,null,null,"Hungarian"]
[null,"Cape Verdean",null,null,null,null,null,null,"Igbo"]
[null,"Central African",null,null,null,null,null,null,"Ilokano"]
[null,"Chadian",null,null,null,null,null,null,"Italian"]
[null,"Chilean",null,null,null,null,null,null,"Japanese"]
[null,"Chinese",null,null,null,null,null,null,"Javanese"]
[null,"Colombian",null,null,null,null,null,null,"Jin"]
[null,"Comoran",null,null,null,null,null,null,"Kannada"]
[null,"Congolese",null,null,null,null,null,null,"Kazakh"]
[null,"Costa Rican",null,null,null,null,null,null,"Khmer"]
[null,"Croatian",null,null,null,null,null,null,"Kinyarwanda"]
[null,"Cuban",null,null,null,null,null,null,"Kirundi"]
[null,"Cypriot",null,null,null,null,null,null,"Konkani"]
[null,"Czech",null,null,null,null,null,null,"Korean"]
[null,"Danish",null,null,null,null,null,null,"Kurdish"]
[null,"Djibouti",null,null,null,null,null,null,"Madurese"]
[null,"Dominican",null,null,null,null,null,null,"Magahi"]
[null,"Dutch",null,null,null,null,null,null,"Maithili"]
[null,"East Timorese",null,null,null,null,null,null,"Malagasy"]
[null,"Ecuadorean",null,null,null,null,null,null,"Malay/Indonesian"]
[null,"Egyptian",null,null,null,null,null,null,"Malayalam"]
[null,"Emirian",null,null,null,null,null,null,"Mandarin"]
[null,"Equatorial Guinean",null,null,null,null,null,null,"Marathi"]
[null,"Eritrean",null,null,null,null,null,null,"Marwari"]
[null,"Estonian",null,null,null,null,null,null,"Min Bei"]
[null,"Ethiopian",null,null,null,null,null,null,"Min Dong"]
[null,"Fijian",null,null,null,null,null,null,"Min Nan"]
[null,"Filipino",null,null,null,null,null,null,"Mossi"]
[null,"Finnish",null,null,null,null,null,null,"Nepali"]
[null,"French",null,null,null,null,null,null,"Oriya"]
[null,"Gabonese",null,null,null,null,null,null,"Oromo"]
[null,"Gambian",null,null,null,null,null,null,"Pashto"]
[null,"Georgian",null,null,null,null,null,null,"Persian"]
[null,"German",null,null,null,null,null,null,"Polish"]
[null,"Ghanaian",null,null,null,null,null,null,"Portuguese"]
[null,"Greek",null,null,null,null,null,null,"Punjabi"]
[null,"Grenadian",null,null,null,null,null,null,"Quechua"]
[null,"Guatemalan",null,null,null,null,null,null,"Romanian"]
[null,"Guinea-Bissauan",null,null,null,null,null,null,"Russian"]
[null,"Guinean",null,null,null,null,null,null,"Saraiki"]
[null,"Guyanese",null,null,null,null,null,null,"Serbo-Croatian"]
[null,"Haitian",null,null,null,null,null,null,"Shona"]
[null,"Herzegovinian",null,null,null,null,null,null,"Sindhi"]
[null,"Honduran",null,null,null,null,null,null,"Sinhalese"]
[null,"Hungarian",null,null,null,null,null,null,"Somali"]
[null,"I-Kiribati",null,null,null,null,null,null,"Spanish"]
[null,"Icelander",null,null,null,null,null,null,"Sundanese"]
[null,"Indian",null,null,null,null,null,null,"Swahili"]
[null,"Indonesian",null,null,null,null,null,null,"Swedish"]
[null,"Iranian",null,null,null,null,null,null,"Sylheti"]
[null,"Iraqi",null,null,null,null,null,null,"Tagalog"]
[null,"Irish",null,null,null,null,null,null,"Tamil"]
[null,"Israeli",null,null,null,null,null,null,"Telugu"]
[null,"Italian",null,null,null,null,null,null,"Thai"]
[null,"Ivorian",null,null,null,null,null,null,"Turkish"]
[null,"Jamaican",null,null,null,null,null,null,"Ukrainian"]
[null,"Japanese",null,null,null,null,null,null,"Urdu"]
[null,"Jordanian",null,null,null,null,null,null,"Uyghur"]
[null,"Kazakhstani",null,null,null,null,null,null,"Uzbek"]
[null,"Kenyan",null,null,null,null,null,null,"Vietnamese"]
[null,"Kittian and Nevisian",null,null,null,null,null,null,"Wu"]
[null,"Kuwaiti",null,null,null,null,null,null,"Xhosa"]
[null,"Kyrgyz",null,null,null,null,null,null,"Xiang"]
[null,"Laotian",null,null,null,null,null,null,"Yoruba"]
[null,"Latvian",null,null,null,null,null,null,"Zhuang"]
[null,"Lebanese",null,null,null,null,null,null,"Zulu"]
[null,"Liberian"]
[null,"Libyan"]
[null,"Liechtensteiner"]
[null,"Lithuanian"]
[null,"Luxembourger"]
[null,"Macedonian"]
[null,"Malagasy"]
[null,"Malawian"]
[null,"Malaysian"]
[null,"Maldivan"]
[null,"Malian"]
[null,"Maltese"]
[null,"Marshallese"]
[null,"Mauritanian"]
[null,"Mauritian"]
[null,"Mexican"]
[null,"Micronesian"]
[null,"Moldovan"]
[null,"Monacan"]
[null,"Mongolian"]
[null,"Moroccan"]
[null,"Mosotho"]
[null,"Motswana"]
[null,"Mozambican"]
[null,"Namibian"]
[null,"Nauruan"]
[null,"Nepalese"]
[null,"New Zealander"]
[null,"Nicaraguan"]
[null,"Nigerian"]
[null,"Nigerien"]
[null,"North Korean"]
[null,"Northern Irish"]
[null,"Norwegian"]
[null,"Omani"]
[null,"Pakistani"]
[null,"Palauan"]
[null,"Panamanian"]
[null,"Papua New Guinean"]
[null,"Paraguayan"]
[null,"Peruvian"]
[null,"Polish"]
[null,"Portuguese"]
[null,"Qatari"]
[null,"Romanian"]
[null,"Russian"]
[null,"Rwandan"]
[null,"Saint Lucian"]
[null,"Salvadoran"]
[null,"Samoan"]
[null,"San Marinese"]
[null,"Sao Tomean"]
[null,"Saudi"]
[null,"Scottish"]
[null,"Senegalese"]
[null,"Serbian"]
[null,"Seychellois"]
[null,"Sierra Leonean"]
[null,"Singaporean"]
[null,"Slovakian"]
[null,"Slovenian"]
[null,"Solomon Islander"]
[null,"Somali"]
[null,"South African"]
[null,"South Korean"]
[null,"Spanish"]
[null,"Sri Lankan"]
[null,"Sudanese"]
[null,"Surinamer"]
[null,"Swazi"]
[null,"Swedish"]
[null,"Swiss"]
[null,"Syrian"]
[null,"Taiwanese"]
[null,"Tajik"]
[null,"Tanzanian"]
[null,"Thai"]
[null,"Togolese"]
[null,"Tongan"]
[null,"Trinidadian or Tobagonian"]
[null,"Tunisian"]
[null,"Turkish"]
[null,"Tuvaluan"]
[null,"Ugandan"]
[null,"Ukrainian"]
[null,"Uruguayan"]
[null,"Uzbekistani"]
[null,"Venezuelan"]
[null,"Vietnamese"]
[null,"Welsh"]
[null,"Yemenite"]
[null,"Zambian"]
[null,"Zimbabwean"]

{"sheet":"Disbursement's (optional)","index":1,"n_rows":5,"n_cols":10,"rows_kept":5,"cut":false,"hidden":false,"merged":[]}
["Completion in this format is optional"]
["You can either complete in narrative format on the application form itself or provide a copy of your Ledger if you prefer"]
["Disbursements incurred",null,null,"Please feel free to add your own headings or change any of the existing ones"]
[]
["Date","Type","Description - Expert Type","Reference","Amount Debit","Amount Credit","Balance","Payee","Billed / Unbilled","VAT"]

{"sheet":"FAQ's","index":2,"n_rows":2,"n_cols":1,"rows_kept":2,"cut":false,"hidden":false,"merged":[[1,0,9,16383]]}
[]
["FAQ"]

{"sheet":"Sheet1","index":3,"n_rows":30,"n_cols":7,"rows_kept":30,"cut":false,"hidden":true,"merged":[]}
[]
[]
[null,"Ranges"]
[]
[]
[null,"Profit Costs","Preparation","Attendance","Advocacy","Routine calls","RoutineLetters"]
[null,"Preparation","Prepare representations","Advice on progress"]
[null,"Attendance","Draft brief","Advice on decision"]
[null,"Advocacy","Compile bundle","Taking instructions - general"]
[null,"Routine Calls","Peruse documents","Taking instructions - statement"]
[null,"Routine Letters","Draft statement","Pre-interview"]
[null,null,"Draft letter","Post-interview"]
[null,null,"Consider RFRL/determination","Liaise with support services"]
[null,null,"Draft application","Liaise with expert"]
[null,null,"Draft LBA","Liaise with counsel"]
[null,null,"Country Research","Other (Specify in comments)"]
[null,null,"Prepare for hearing"]
[null,null,"Assess merits"]
[null,null,"Other (Specify in comments)"]
[]
[]
[null,"Disbursements","Travel costs"]
[null,"Interpreter","Fares"]
[null,"Translation","Mileage"]
[null,"Travel Costs"]
[null,"Subject Access Request"]
[null,"GP Records"]
[null,"DNA Testing"]
[null,"MH Report"]
[null,"Photocopying"]